bitfinex-derivatives/quotes_ETHF0:USTF0_20251226
["timestamp","ask_amount","ask_price","bid_price","bid_amount"]
[1766737770986,0.16875,2964.9,2963.2,0.00401648]
[1766737771181,0.9160179,2964.8,2963.2,0.00401648]
[1766737771480,0.16875,2964.9,2963.2,0.00401648]
[1766737771679,0.91337114,2964.8,2963.2,0.00401648]
[1766737771881,0.16875,2964.9,2963.2,0.00401648]
[1766737772081,0.91336936,2964.8,2963.2,0.00401648]
[1766737772388,0.16875,2964.9,2963.2,0.00401648]
[1766737772687,0.91338953,2964.8,2963.2,0.00401648]
[1766737772884,0.16875,2964.9,2963.2,0.00401648]
[1766737773085,0.91339512,2964.8,2963.2,0.00401648]
[1766737773385,0.16875,2964.9,2963.2,0.00401648]
[1766737773580,0.91341742,2964.8,2963.2,0.00401648]
[1766737773780,0.16875,2964.9,2963.2,0.00401648]
[1766737774079,0.91341919,2964.8,2963.2,0.00401648]
[1766737774277,0.16875,2964.9,2963.2,0.00401648]
[1766737774479,0.91345655,2964.8,2963.2,0.00401648]
[1766737774676,0.16875,2964.9,2963.2,0.00401648]
[1766737774883,0.91345477,2964.8,2963.2,0.00401648]
[1766737775088,0.16875,2964.9,2963.2,0.00401648]
[1766737775293,0.91345477,2964.8,2963.2,0.00401648]
[1766737775489,0.16875,2964.9,2963.2,0.00401648]
[1766737775687,0.91349793,2964.8,2963.2,0.00401648]
[1766737775984,0.16875,2964.9,2963.2,0.00401648]
[1766737776186,0.91349972,2964.8,2963.2,0.00401648]
[1766737776382,6.62475,2964.9,2963.2,0.00401648]
[1766737776578,0.91355517,2964.8,2963.2,0.00401648]
[1766737776782,6.62475,2964.9,2963.2,0.00401648]
[1766737776982,0.91355879,2964.8,2963.2,0.00401648]
[1766737777191,6.62475,2964.9,2963.2,0.00401648]
[1766737777489,0.91366981,2964.8,2963.2,0.00401648]
[1766737777691,6.62475,2964.9,2963.2,0.00401648]
[1766737777891,0.91366982,2964.8,2963.2,0.00401648]
[1766737778192,6.62475,2964.9,2963.2,0.00401648]
[1766737778384,0.91374033,2964.8,2963.2,0.00401648]
[1766737778586,6.62475,2964.9,2963.2,0.00401648]
[1766737778796,0.91373857,2964.8,2963.2,0.00401648]
[1766737779091,6.62475,2964.9,2963.2,0.00401648]
[1766737779290,0.91373862,2964.8,2963.2,0.00401648]
[1766737779486,6.62475,2964.9,2963.2,0.00401648]
[1766737779688,0.9138239,2964.8,2963.2,0.00401648]
[1766737779884,6.62475,2964.9,2963.2,0.00401648]
[1766737780090,0.9138239,2964.8,2963.2,0.00401648]
[1766737780389,6.62475,2964.9,2963.2,0.00401648]
[1766737780589,0.91392202,2964.8,2963.2,0.00401648]
[1766737780790,6.62475,2964.9,2963.2,0.00401648]
[1766737780989,0.91392292,2964.8,2963.2,0.00401648]
[1766737781289,6.62475,2964.9,2963.2,0.00401648]
[1766737781486,0.91402251,2964.8,2963.2,0.00401648]
[1766737781686,6.62475,2964.9,2963.2,0.00401648]
[1766737781886,0.91399966,2964.8,2963.2,0.00401648]
[1766737782087,6.62475,2964.9,2963.2,0.00401648]
[1766737782290,0.91400446,2964.8,2963.2,0.00401648]
[1766737782488,0.91400446,2964.7,2963.2,0.00401648]
[1766737782696,0.7954022,2964.5,2963.2,0.00401648]
[1766737782896,0.16877,2964.7,2963.2,0.00401648]
[1766737783080,0.91403688,2964.6,2963.2,0.00401648]
[1766737783287,1.08281688,2964.5,2963.2,0.00401648]
[1766737783490,0.91403688,2964.4,2962.9,1.45226094]
[1766737783688,6.505,2964.3,2962.9,1.45226094]
[1766737784497,6.505,2964.3,2962.9,1.45635065]
[1766737790204,0.16878,2964.5,2962.9,1.45635065]
[1766737790397,6.521,2964.4,2962.9,1.45635065]
[1766737800008,0.16878,2964.5,2962.9,1.45635065]
[1766737800210,6.603,2964.4,2962.9,1.45635065]
[1766737800602,0.16878,2964.5,2962.9,1.45635065]
[1766737800808,3.651,2964.4,2962.9,2.25175285]
[1766737801013,3.651,2964.4,2962.9,1.45635065]
[1766737803310,6.608,2964.3,2962.9,1.45635065]
[1766737806713,0.16878,2964.5,2962.9,1.45635065]
[1766737811315,0.91685604,2964.4,2962.9,1.45635065]
[1766737811518,0.16878,2964.5,2962.9,1.45635065]
[1766737811825,0.91686995,2964.4,2962.9,1.45635065]
[1766737812034,0.16878,2964.5,2962.9,1.45635065]
[1766737812315,0.91687622,2964.4,2962.9,1.45635065]
[1766737812510,0.16878,2964.5,2962.9,1.45635065]
[1766737812719,0.91727423,2964.4,2962.9,1.45635065]
[1766737812912,0.16878,2964.5,2962.9,1.45635065]
[1766737813114,0.91721102,2964.4,2962.9,1.45635065]
[1766737813413,0.16878,2964.5,2962.9,1.45635065]
[1766737813610,0.9172945,2964.4,2962.9,1.45635065]
[1766737813808,0.16878,2964.5,2962.9,1.45635065]
[1766737814014,0.91729395,2964.4,2962.9,1.45635065]
[1766737814213,0.16878,2964.5,2962.9,1.45635065]
[1766737814414,0.91729861,2964.4,2962.9,1.45635065]
[1766737814623,0.16878,2964.5,2962.9,1.45635065]
[1766737814823,0.9172953,2964.4,2962.9,1.45635065]
[1766737815011,0.16878,2964.5,2962.9,1.45635065]
[1766737815220,0.91729351,2964.4,2962.9,1.45635065]
[1766737815415,0.16878,2964.5,2962.9,1.45635065]
[1766737815625,0.917293,2964.4,2962.9,1.45635065]
[1766737815823,0.16878,2964.5,2962.9,1.45635065]
[1766737816023,0.91720174,2964.4,2963.1,0.79560558]
[1766737816229,0.96438558,2964.5,2963.1,0.79560558]
[1766737816416,0.91719922,2964.4,2963.1,0.79560558]
[1766737816617,0.96438558,2964.5,2963.1,0.79560558]
[1766737816817,0.91719736,2964.4,2963.1,0.79560558]
[1766737817121,0.96438558,2964.5,2963.1,0.79560558]
[1766737817322,0.91719917,2964.4,2963.1,0.79560558]
[1766737817523,0.96438558,2964.5,2963.1,0.79560558]
[1766737817711,0.91716052,2964.4,2963.1,0.79560558]
[1766737817913,0.96438558,2964.5,2963.1,0.79560558]
[1766737818116,0.91716252,2964.4,2963.1,0.79560558]
[1766737818316,0.96438558,2964.5,2963.1,0.79560558]
[1766737818516,0.91716656,2964.4,2963.1,0.79560558]
[1766737818720,0.96438558,2964.5,2963.1,0.79560558]
[1766737818917,0.91720166,2964.4,2963.1,0.79560558]
[1766737819119,0.96438558,2964.5,2963.1,0.79560558]
[1766737819328,0.91720868,2964.4,2963.1,0.79560558]
[1766737819626,0.96438558,2964.5,2963.1,0.79560558]
[1766737819827,0.91720951,2964.4,2963.1,0.79560558]
[1766737820125,0.79560558,2964.3,2962.9,1.45635065]
[1766737821627,6.75578,2964.5,2963.1,0.79560558]
[1766737821829,0.91720387,2964.4,2963.1,0.79560558]
[1766737822125,0.16878,2964.5,2963.1,0.79560558]
[1766737822326,0.91720269,2964.4,2963.1,0.79560558]
[1766737822529,0.16878,2964.5,2963.1,0.79560558]
[1766737822724,0.91718846,2964.4,2963.1,0.79560558]
[1766737822929,0.16878,2964.5,2963.1,0.79560558]
[1766737823130,0.91719267,2964.4,2963.1,0.79560558]
[1766737823329,0.16878,2964.5,2963.1,0.79560558]
[1766737823525,0.91717585,2964.4,2963.1,0.79560558]
[1766737823726,0.16878,2964.5,2963.1,0.79560558]
[1766737823925,0.91718165,2964.4,2963.1,0.79560558]
[1766737824128,0.16878,2964.5,2963.1,0.79560558]
[1766737824330,0.91717038,2964.4,2963.1,0.79560558]
[1766737824630,0.16878,2964.5,2963.1,0.79560558]
[1766737824827,0.91715667,2964.4,2963.1,0.79560558]
[1766737825030,0.16878,2964.5,2963.1,0.79560558]
[1766737825227,0.91714093,2964.4,2963.1,0.79560558]
[1766737825428,0.16878,2964.5,2963.1,0.79560558]
[1766737825733,0.91709182,2964.4,2963.1,0.79560558]
[1766737825938,0.16878,2964.5,2963.1,0.79560558]
[1766737826130,0.91708904,2964.4,2963.1,0.79560558]
[1766737826332,0.16878,2964.5,2963.1,0.79560558]
[1766737826533,0.91708196,2964.4,2963.1,0.79560558]
[1766737826732,0.16878,2964.5,2963.1,0.79560558]
[1766737826932,0.91708334,2964.4,2963.1,0.79560558]
[1766737827134,0.16878,2964.5,2963.1,0.79560558]
[1766737827431,0.91707515,2964.4,2963.1,0.79560558]
[1766737827630,0.16878,2964.5,2963.1,0.79560558]
[1766737827836,0.91707343,2964.4,2963.1,0.79560558]
[1766737828032,0.16878,2964.5,2963.1,0.79560558]
[1766737828238,0.91695922,2964.4,2963.1,0.79560558]
[1766737828537,0.16878,2964.5,2963.1,0.79560558]
[1766737828736,0.91695056,2964.4,2963.1,0.79560558]
[1766737828934,0.16878,2964.5,2963.1,0.79560558]
[1766737829138,0.91695028,2964.4,2963.1,0.79560558]
[1766737829338,0.16878,2964.5,2963.1,0.79560558]
[1766737829538,0.91694148,2964.4,2963.1,0.79560558]
[1766737829739,0.16878,2964.5,2963.1,0.79560558]
[1766737829942,0.91689483,2964.4,2963.1,0.79560558]
[1766737830142,0.16878,2964.5,2963.1,0.79560558]
[1766737830340,0.91687985,2964.4,2963.1,0.79560558]
[1766737830544,0.16878,2964.5,2963.1,0.79560558]
[1766737830743,0.91690323,2964.4,2963.1,0.79560558]
[1766737830943,0.16878,2964.5,2963.1,0.79560558]
[1766737831144,0.91690323,2964.4,2963.1,0.79560558]
[1766737831346,0.16878,2964.5,2963.1,0.79560558]
[1766737831546,0.91589302,2964.4,2963.1,0.79560558]
[1766737831746,0.16878,2964.5,2963.1,0.79560558]
[1766737831948,0.91599702,2964.4,2963.1,0.79560558]
[1766737832142,0.16878,2964.5,2963.1,0.79560558]
[1766737832343,0.91626807,2964.4,2963.1,0.79560558]
[1766737832548,0.16878,2964.5,2963.1,0.79560558]
[1766737832748,0.91634625,2964.4,2963.1,0.79560558]
[1766737833051,0.16878,2964.5,2963.1,0.79560558]
[1766737833253,0.91637491,2964.4,2963.1,0.79560558]
[1766737833454,0.16878,2964.5,2963.1,0.79560558]
[1766737833654,0.91640524,2964.4,2963.1,0.79560558]
[1766737833854,0.16878,2964.5,2963.1,0.79560558]
[1766737834054,0.9165632,2964.4,2963.1,0.79560558]
[1766737834253,0.16878,2964.5,2963.1,0.79560558]
[1766737834458,0.91664021,2964.4,2963.1,0.79560558]
[1766737834646,0.16878,2964.5,2963.1,0.79560558]
[1766737834952,0.91663466,2964.4,2963.1,0.79560558]
[1766737835149,0.16878,2964.5,2963.1,0.79560558]
[1766737835352,0.91662801,2964.4,2963.1,0.79560558]
[1766737835546,0.16878,2964.5,2963.1,0.79560558]
[1766737835746,0.91667634,2964.4,2963.1,0.79560558]
[1766737836046,0.16878,2964.5,2963.1,0.79560558]
[1766737836245,0.91667871,2964.4,2963.1,0.79560558]
[1766737836448,0.96438558,2964.5,2963.1,0.79560558]
[1766737836653,0.91673415,2964.4,2963.1,0.79560558]
[1766737836853,0.16878,2964.5,2963.1,0.79560558]
[1766737837057,0.91673482,2964.4,2963.1,0.79560558]
[1766737837257,0.16878,2964.5,2963.1,0.79560558]
[1766737837555,0.9167475,2964.4,2963.1,0.79560558]
[1766737837756,0.16878,2964.5,2962.9,0.00408971]
[1766737838054,0.91674724,2964.4,2963.1,0.79560558]
[1766737838256,0.16878,2964.5,2963.1,0.79560558]
[1766737838449,0.91675897,2964.4,2963.1,0.79560558]
[1766737838648,0.16878,2964.5,2963.1,0.79560558]
[1766737838849,0.91678763,2964.4,2963.1,0.79560558]
[1766737839051,0.16878,2964.5,2963.1,0.79560558]
[1766737839249,0.91678996,2964.4,2963.1,0.79560558]
[1766737839448,0.16878,2964.5,2963.1,0.79560558]
[1766737840154,0.91686232,2964.4,2963.1,0.79560558]
[1766737840355,0.16878,2964.5,2963.1,0.79560558]
[1766737840855,0.9168952,2964.4,2963.1,0.79560558]
[1766737841057,0.16878,2964.5,2963.1,0.79560558]
[1766737841252,0.91692124,2964.4,2963.1,0.79560558]
[1766737841454,0.16878,2964.5,2963.1,0.79560558]
[1766737841660,0.91694929,2964.4,2963.1,0.79560558]
[1766737841861,0.16878,2964.5,2963.1,0.79560558]
[1766737842159,0.91694239,2964.4,2963.1,0.79560558]
[1766737842360,0.16878,2964.5,2963.1,0.79560558]
[1766737842657,0.91691803,2964.4,2963.1,0.79560558]
[1766737842855,0.16878,2964.5,2963.1,0.79560558]
[1766737843158,0.91691419,2964.4,2963.1,0.79560558]
[1766737843456,0.16878,2964.5,2963.1,0.79560558]
[1766737843657,0.916913,2964.4,2963.1,0.79560558]
[1766737843860,0.16878,2964.5,2963.1,0.79560558]
[1766737844159,0.91691608,2964.4,2963.1,0.79560558]
[1766737844360,0.16878,2964.5,2963.1,0.79560558]
[1766737844658,0.91690986,2964.4,2963.1,0.79560558]
[1766737844962,0.16878,2964.5,2963.1,0.79560558]
[1766737845257,0.91688286,2964.4,2963.1,0.79560558]
[1766737845458,0.16878,2964.5,2963.1,0.79560558]
[1766737845658,0.91688688,2964.4,2963.1,0.79560558]
[1766737845848,0.16878,2964.5,2963.1,0.79560558]
[1766737846052,0.91688688,2964.4,2963.1,0.79560558]
[1766737846260,0.16878,2964.5,2963.1,0.79560558]
[1766737846472,0.9168983,2964.4,2963.1,0.79560558]
[1766737846654,0.16878,2964.5,2963.1,0.79560558]
[1766737846857,0.91688845,2964.4,2963.1,0.79560558]
[1766737847054,0.16878,2964.5,2963.1,0.79560558]
[1766737847255,0.91688852,2964.4,2963.1,0.79560558]
[1766737847454,0.16878,2964.5,2963.1,0.79560558]
[1766737847662,0.91689102,2964.4,2963.1,0.79560558]
[1766737847868,0.16878,2964.5,2963.1,0.79560558]
[1766737848161,0.91689454,2964.4,2963.1,0.79560558]
[1766737848362,0.16878,2964.5,2963.1,0.79560558]
[1766737848564,0.91691675,2964.4,2963.1,0.79560558]
[1766737848757,0.16878,2964.5,2963.1,0.79560558]
[1766737848956,0.91691496,2964.4,2963.1,0.79560558]
[1766737849257,0.16878,2964.5,2963.1,0.79560558]
[1766737849453,0.91692067,2964.4,2963.1,0.79560558]
[1766737849658,0.16878,2964.5,2963.1,0.79560558]
[1766737849960,0.9169224,2964.4,2963.1,0.79560558]
[1766737850156,0.16878,2964.5,2963.1,0.79560558]
[1766737850357,0.91692034,2964.4,2963.1,0.79560558]
[1766737850558,0.16878,2964.5,2963.1,0.79560558]
[1766737850758,0.91693512,2964.4,2963.1,0.79560558]
[1766737850958,0.16878,2964.5,2963.1,0.79560558]
[1766737851158,0.91693512,2964.4,2963.1,0.79560558]
[1766737851358,0.16878,2964.5,2963.1,0.79560558]
[1766737851657,0.91701299,2964.4,2963.1,0.79560558]
[1766737851955,0.16878,2964.5,2963.1,0.79560558]
[1766737852158,0.91701299,2964.4,2963.1,0.79560558]
[1766737852357,0.16878,2964.5,2963.1,0.79560558]
[1766737852558,0.91701631,2964.4,2963.1,0.79560558]
[1766737852767,0.16878,2964.5,2963.1,0.79560558]
[1766737852966,0.91701655,2964.4,2963.1,0.79560558]
[1766737853166,0.16878,2964.5,2963.1,0.79560558]
[1766737853466,0.91701682,2964.4,2963.1,0.79560558]
[1766737853660,0.16878,2964.5,2963.1,0.79560558]
[1766737853860,0.91700925,2964.4,2963.1,0.79560558]
[1766737854159,0.16878,2964.5,2963.1,0.79560558]
[1766737854358,0.91701121,2964.4,2963.1,0.79560558]
[1766737854564,0.16878,2964.5,2963.1,0.79560558]
[1766737854767,0.91699952,2964.4,2963.1,0.79560558]
[1766737854966,0.16878,2964.5,2963.1,0.79560558]
[1766737855264,0.91700245,2964.4,2963.0,0.79560558]
[1766737855464,0.16878,2964.5,2963.0,0.79560558]
[1766737855764,0.91700442,2964.4,2963.0,0.79560558]
[1766737856065,0.16878,2964.5,2963.0,0.79560558]
[1766737856265,0.9170038,2964.4,2963.0,0.79560558]
[1766737856465,0.16878,2964.5,2963.0,0.79560558]
[1766737856666,0.91700584,2964.4,2963.0,0.79560558]
[1766737856865,0.16878,2964.5,2963.0,0.79560558]
[1766737857067,0.91700593,2964.4,2963.0,0.79560558]
[1766737857269,0.16878,2964.5,2963.0,0.79560558]
[1766737857467,0.91700606,2964.4,2963.0,0.79560558]
[1766737857666,0.16878,2964.5,2963.0,0.79560558]
[1766737857970,0.9170007,2964.4,2963.0,0.79560558]
[1766737858167,0.16878,2964.5,2963.0,0.79560558]
[1766737858370,0.91658769,2964.4,2963.0,0.79560558]
[1766737858561,0.16878,2964.5,2963.0,0.79560558]
[1766737858861,0.9165452,2964.4,2963.0,0.79560558]
[1766737859062,0.16878,2964.5,2963.0,0.79560558]
[1766737859263,0.91655625,2964.4,2963.0,0.79560558]
[1766737859466,0.16878,2964.5,2963.0,0.79560558]
[1766737859671,0.91655521,2964.4,2963.0,0.79560558]
[1766737859874,0.16878,2964.5,2963.0,0.79560558]
[1766737860168,0.91656016,2964.4,2963.0,0.79560558]
[1766737860469,0.16878,2964.5,2963.0,0.79560558]
[1766737860668,0.91655474,2964.4,2963.0,0.79560558]
[1766737860970,0.16878,2964.5,2963.0,0.79560558]
[1766737861269,0.91656017,2964.4,2963.0,0.79560558]
[1766737861474,0.16878,2964.5,2963.0,0.79560558]
[1766737861770,0.91702781,2964.4,2963.0,0.79560558]
[1766737861972,0.16878,2964.5,2963.0,0.79560558]
[1766737862274,0.91725639,2964.4,2963.0,0.79560558]
[1766737862459,0.16878,2964.5,2963.0,0.79560558]
[1766737862662,0.91747545,2964.4,2963.0,0.79560558]
[1766737862866,0.16878,2964.5,2963.0,0.79560558]
[1766737863066,0.9174797,2964.4,2963.0,0.79560558]
[1766737863269,0.79560558,2963.6,2962.9,0.00408971]
[1766737863568,0.79560558,2963.2,2961.8,4.28475151]
[1766737863766,0.79560558,2963.2,2961.8,0.1205536]
[1766737863966,0.0050656,2963.5,2962.0,0.79560558]
[1766737864574,0.00767373,2963.5,2962.0,0.79987165]
[1766737866569,0.80327931,2963.5,2962.0,0.79987165]
[1766737866775,0.79560558,2963.2,2962.0,0.00426607]
[1766737868063,0.97210931,2963.5,2962.0,0.79987165]
[1766737868262,7.51410931,2963.5,2962.0,0.79987165]
[1766737869463,0.79560558,2963.2,2962.0,0.00426607]
[1766737869868,0.79560558,2962.9,2962.0,0.00426607]
[1766737870770,0.79560558,2962.6,2961.1,5.40160558]
[1766737871777,0.79560558,2962.6,2961.1,5.40488314]
[1766737873570,0.79560558,2962.6,2961.1,4.60927756]
[1766737873978,0.79560558,2962.3,2961.1,0.00327756]
[1766737874175,0.0050656,2962.0,2961.1,0.00327756]
[1766737877574,0.0050656,2962.0,2960.1,1.47045822]
[1766737877977,0.80191495,2962.0,2960.1,1.47045822]
[1766737878275,0.0050656,2962.0,2960.1,1.47045822]
[1766737878475,0.0050656,2962.0,2960.1,1.47290564]
[1766737879574,0.79684935,2961.9,2960.1,1.47290564]
[1766737880279,0.16893,2961.8,2960.1,0.00244742]
[1766737881269,0.0050656,2962.0,2960.1,0.79929677]
[1766737881879,0.0050656,2962.0,2960.1,0.00244742]
[1766737882879,0.0050656,2962.0,2960.1,2.27858775]
[1766737885882,0.80191495,2962.0,2960.1,1.4817384]
[1766737887784,0.16893,2961.9,2960.1,1.4817384]
[1766737888384,0.16894,2961.7,2960.1,0.00244742]
[1766737890086,0.79684935,2961.6,2960.1,0.00244742]
[1766737890591,0.79684935,2961.0,2960.1,0.00244742]
[1766737890786,0.79946573,2961.0,2960.1,0.00244742]
[1766737891182,0.00261638,2961.0,2960.1,0.00244742]
[1766737892094,0.00261638,2961.0,2958.9,4.606]
[1766737892288,0.0050656,2960.2,2958.9,4.606]
[1766737892589,0.0050656,2960.2,2958.8,1.44294759]
[1766737892996,0.0050656,2960.2,2958.8,1.44568904]
[1766737894194,0.0050656,2960.2,2958.8,0.00274145]
[1766737894584,0.0050656,2960.2,2958.8,0.7995908]
[1766737896200,0.71561638,2961.0,2959.2,0.79684935]
[1766737896201,0.00261638,2961.0,2959.2,0.79684935]
[1766737896386,0.00261638,2961.0,2959.2,5.42284935]
[1766737897288,0.0050656,2960.4,2959.8,0.0050656]
[1766737897492,0.00261638,2961.0,2959.8,0.0050656]
[1766737898593,0.0050656,2960.7,2959.8,0.0050656]
[1766737915506,0.91417391,2960.6,2959.8,0.0050656]
[1766737915703,0.91417391,2960.5,2959.8,0.0050656]
[1766737915897,0.0050656,2960.7,2959.8,0.0050656]
[1766737916096,0.91417555,2960.6,2959.8,0.0050656]
[1766737916408,0.91417555,2960.5,2959.8,0.0050656]
[1766737916608,0.0050656,2960.7,2959.8,0.0050656]
[1766737916809,0.91449463,2960.6,2959.8,0.0050656]
[1766737917103,0.91449463,2960.5,2959.8,0.0050656]
[1766737917309,0.9050656,2960.7,2959.8,0.0050656]
[1766737917504,0.91465346,2960.6,2959.8,0.0050656]
[1766737917711,0.91465346,2960.5,2959.8,0.0050656]
[1766737917911,0.9050656,2960.7,2959.8,0.0050656]
[1766737918108,0.91454398,2960.6,2959.8,0.0050656]
[1766737918410,0.91454398,2960.5,2959.8,0.0050656]
[1766737918710,0.9050656,2960.7,2959.8,0.0050656]
[1766737919011,0.91490388,2960.6,2959.8,0.0050656]
[1766737919206,0.91490388,2960.5,2959.8,0.0050656]
[1766737919513,0.9050656,2960.7,2959.8,0.0050656]
[1766737919708,0.91521427,2960.6,2959.8,0.0050656]
[1766737919910,0.91521427,2960.5,2959.8,0.0050656]
[1766737920210,0.9050656,2960.7,2959.8,0.0050656]
[1766737924814,0.9,2960.6,2959.8,0.0050656]
[1766737936025,0.9,2960.5,2959.8,0.0050656]
[1766737941625,0.9,2960.5,2959.9,0.79750018]
[1766737945632,0.0050656,2960.7,2960.2,0.79750018]
[1766737945833,0.00261638,2961.0,2960.2,0.79750018]
[1766737946134,6.63878592,2961.7,2960.2,0.79750018]
[1766737946325,0.91394996,2961.6,2960.2,0.79750018]
[1766737946520,6.63878592,2961.7,2960.2,0.79750018]
[1766737946720,0.0050656,2961.2,2960.2,0.79750018]
[1766737946926,0.00784836,2961.2,2960.2,0.79750018]
[1766737947736,0.00784836,2961.2,2960.5,0.79750018]
[1766737948335,0.00784836,2961.2,2960.2,0.79750018]
[1766737958744,0.00784836,2961.2,2960.5,0.79750018]
[1766737959244,0.00784836,2961.2,2960.2,0.79750018]
[1766737962343,0.08177039,3662.5,2960.8,0.79750018]
[1766737962344,0.79750018,2962.3,2960.8,0.79750018]
[1766737962650,0.96639018,2962.5,2961.1,0.79750018]
[1766737963446,0.0050656,2962.1,2961.5,0.0050656]
[1766737966639,0.00283592,2962.5,2961.5,0.0050656]
[1766737966843,0.00283592,2962.5,2961.7,0.79750018]
[1766737967137,0.16886,2963.1,2962.0,0.79750018]
[1766737967650,0.0050656,2962.8,2961.7,0.79750018]
[1766737968139,0.00801661,2962.8,2961.7,0.79750018]
[1766737977558,0.00801661,2962.8,2961.5,0.0050656]
[1766737977763,0.00801661,2962.8,2961.6,0.79750018]
[1766737980661,0.00801661,2962.8,2961.5,0.0050656]
[1766737980863,0.79750018,2962.6,2961.5,0.0050656]
[1766737981576,0.79750018,2962.3,2961.5,0.0050656]
[1766737981768,0.79750018,2962.5,2961.5,0.0050656]
[1766737982862,0.16889,2962.6,2961.5,0.0050656]
[1766737982863,6.70489,2962.6,2961.5,0.0050656]
[1766737984567,0.16889,2962.6,2961.5,0.0050656]
[1766737989567,0.79750018,2962.5,2961.5,0.0050656]
[1766737990871,0.16889,2962.6,2961.5,0.0050656]
[1766737991774,0.80551679,2962.8,2961.5,0.0050656]
[1766737991973,0.91222411,2962.7,2961.5,0.0050656]
[1766737992267,0.00801661,2962.8,2961.5,0.0050656]
[1766737992566,0.91245694,2962.7,2961.5,0.0050656]
[1766737992770,0.00801661,2962.8,2961.5,0.0050656]
[1766737992970,0.91293017,2962.7,2961.5,0.0050656]
[1766737993171,0.00801661,2962.8,2961.5,0.0050656]
[1766737993371,0.91300355,2962.7,2961.5,0.0050656]
[1766737993574,0.00801661,2962.8,2961.5,0.0050656]
[1766737993872,0.91300415,2962.7,2961.5,0.0050656]
[1766737994062,0.00801661,2962.8,2961.5,0.0050656]
[1766737994264,0.91304158,2962.7,2961.5,0.0050656]
[1766737994467,0.00801661,2962.8,2961.5,0.0050656]
[1766737994669,0.91310305,2962.7,2961.5,0.0050656]
[1766737994862,0.00801661,2962.8,2961.5,0.0050656]
[1766737995069,0.91310305,2962.7,2961.5,0.0050656]
[1766737995262,0.91320053,2962.6,2961.5,0.0050656]
[1766737995465,0.00801661,2962.8,2961.5,0.0050656]
[1766737995661,0.91320974,2962.7,2961.6,0.79750018]
[1766737995973,0.00801661,2962.8,2961.6,0.79750018]
[1766737996872,0.00801661,2962.8,2961.9,0.79750018]
[1766737998075,0.00801661,2962.8,2961.5,0.0050656]
[1766737999872,0.00801661,2962.8,2961.8,0.79631142]
[1766738000272,1.661e-05,2962.8,2961.8,0.79631142]
[1766738001182,0.00337706,2962.6,2961.8,0.79631142]
[1766738001982,1.661e-05,2962.8,2961.8,0.79631142]
[1766738006593,0.14301568,2963.8,2961.8,0.79631142]
[1766738006788,0.08426975,2963.8,2962.2,0.79631142]
[1766738007086,40.8,2964.5,2962.6,0.79631142]
[1766738007289,0.91197396,2964.4,2963.3,0.0050656]
[1766738007490,6.77977,2964.6,2963.3,0.0050656]
[1766738007692,0.17179206,2964.6,2963.3,0.00939747]
[1766738011895,0.96810348,2964.6,2963.3,0.00939747]
[1766738013999,0.17179206,2964.6,2963.3,0.00939747]
[1766738021702,0.96810348,2964.6,2963.3,0.00939747]
[1766738022101,0.16879,2964.3,2962.4,0.79631142]
[1766738022303,0.79631142,2964.2,2962.0,0.79631142]
[1766738023108,0.0050656,2963.4,2962.8,0.0050656]
[1766738041308,0.0050656,2963.4,2962.0,0.00237894]
[1766738042303,0.0050656,2963.4,2962.4,0.0050656]
[1766738042812,7.51203004,2963.3,2962.0,0.00237894]
[1766738043014,6.601,2963.3,2962.0,0.00237894]
[1766738043817,6.601,2963.3,2962.4,0.0050656]
[1766738044312,6.601,2963.3,2962.0,0.00237894]
[1766738044717,0.79631142,2963.0,2962.0,0.00237894]
[1766738044918,0.79631142,2963.0,2961.0,0.79631142]
[1766738045114,0.96517142,2963.0,2960.6,0.96531142]
[1766738045318,0.91075245,2962.9,2961.5,0.0050656]
[1766738045618,0.96517142,2963.0,2961.5,0.0050656]
[1766738045817,0.91014509,2962.9,2961.5,0.00891548]
[1766738046018,0.96517142,2963.0,2961.5,0.00891548]
[1766738046213,1.07902515,2962.9,2961.5,0.00891548]
[1766738046423,0.91015515,2962.8,2961.5,0.00891548]
[1766738046718,0.16887,2962.9,2961.5,0.00891548]
[1766738046914,0.90961347,2962.8,2961.5,0.00891548]
[1766738047114,0.16887,2962.9,2961.5,0.00891548]
[1766738047312,0.90967246,2962.8,2961.5,0.00891548]
[1766738047519,0.16887,2962.9,2961.5,0.00891548]
[1766738047919,0.90924873,2962.8,2961.5,0.00891548]
[1766738048218,0.16887,2962.9,2961.5,0.00891548]
[1766738050625,6.615,2962.8,2961.5,0.00891548]
[1766738051517,6.613,2962.7,2961.5,0.00891548]
[1766738051718,0.16887,2962.9,2961.5,0.00891548]
[1766738051917,6.613,2962.8,2961.5,0.00891548]
[1766738052323,0.16887,2962.9,2961.5,0.00891548]
[1766738052525,6.612,2962.7,2961.5,0.00891548]
[1766738054127,0.16887,2962.9,2961.5,0.00891548]
[1766738054328,6.611,2962.8,2961.5,0.00891548]
[1766738057417,6.607,2962.8,2961.5,0.00891548]
[1766738058117,6.607,2962.8,2961.6,0.79644075]
[1766738059432,0.16887,2962.9,2961.6,0.79644075]
[1766738060527,6.605,2963.1,2961.9,0.79644075]
[1766738060732,6.604,2963.2,2961.9,0.79644075]
[1766738061233,7.39944075,2963.3,2961.9,0.79644075]
[1766738061634,0.79644075,2963.3,2961.9,0.79644075]
[1766738062529,0.0050656,2963.4,2961.9,0.79644075]
[1766738062835,0.0050656,2963.4,2962.2,0.79644075]
[1766738063037,0.0050656,2963.4,2962.5,0.79644075]
[1766738063331,0.0050656,2963.4,2962.2,0.79644075]
[1766738077746,0.80150635,2963.4,2962.0,0.79644075]
[1766738079754,0.0050656,2963.4,2962.0,0.79644075]
[1766738080357,6.722,2963.3,2962.0,0.79644075]
[1766738084458,6.722,2963.3,2962.3,0.79644075]
[1766738086858,0.0050656,2963.4,2962.3,0.79644075]
[1766738087056,6.7550656,2963.4,2962.3,0.79644075]
[1766738087257,6.7570656,2963.4,2962.3,0.79644075]
[1766738087557,0.0050656,2963.4,2962.6,0.79644075]
[1766738103173,0.0050656,2963.4,2961.7,0.16893]
[1766738103374,0.0050656,2963.4,2962.0,0.79644075]
[1766738103566,0.0050656,2963.4,2962.3,0.79644075]
[1766738105386,0.80150635,2963.4,2962.0,0.79644075]
[1766738105577,0.91338461,2963.3,2961.7,0.79644075]
[1766738105772,0.91338461,2963.2,2961.7,0.79644075]
[1766738105980,0.80150635,2963.4,2961.7,0.79644075]
[1766738106173,0.91341131,2963.3,2961.7,0.79644075]
[1766738106476,0.91341131,2963.2,2961.7,0.79644075]
[1766738106676,0.80150635,2963.4,2961.7,0.79644075]
[1766738106881,0.96530075,2963.1,2961.5,0.00891548]
[1766738107177,0.79644075,2962.8,2961.5,0.00891548]
[1766738107475,6.863,2962.7,2961.5,0.00891548]
[1766738107671,0.16887,2962.9,2961.5,0.80535623]
[1766738107875,0.79644075,2963.3,2961.7,0.79644075]
[1766738108076,0.91234547,2963.2,2961.7,0.79644075]
[1766738108277,5.08734547,2963.1,2961.7,0.79644075]